[Event "GER-ch Youth U18 2019"]
[Site "Willingen"]
[Date "2019.06.12"]
[Round "6.12"]
[White "Wendler, David"]
[Black "Rockmann, Jan-Okke"]
[Result "1-0"]
[ECO "C77"]
[WhiteElo "2166"]
[BlackElo "1816"]
[Annotator "NA"]
[PlyCount "65"]
[EventDate "2019.06.07"]
[EventType "swiss"]
[EventRounds "9"]
[EventCountry "GER"]
[SourceTitle "playchess.com"]
[Source "ChessBase"]
[SourceQuality "1"]
[TimeControl "40/5400+30:1800+30"]

1. e4 {[%emt 0:00:00]} e5 {[%emt 0:00:00]} 2. Nf3 {[%emt 0:00:00]} Nc6 {[%emt 0:00:00]} 3. Bb5 {[%emt 0:00:00]} a6 {[%emt 0:00:00]} 4. Ba4 {[%emt 0:00:00]} Nf6 {[%emt 0:00:00]} 5. d3 {[%emt 0:00:02]} b5 {[%emt 0:00:39]} 6. Bb3 {[%emt 0:00:23]} Bc5 {[%emt 0:00:09]} 7. O-O {[%emt 0:00:40]} d6 {[%emt 0:00:27]} 8. c3 {[%emt 0:00:25]} h6 {[%emt 0:00:10]} 9. h3 {[%emt 0:01:11]} O-O {[%emt 0:00:31]} 10. Re1 {[%emt 0:00:59]} Bb6 {[%emt 0:00:22]} 11. Nbd2 {[%emt 0:01:10]} Ne7 {[%emt 0:00:18]} 12. Nf1 {[%emt 0:03:32]} Ng6 {[%emt 0:00:15]} 13. Ng3 {[%emt 0:04:28]} Re8 {[%emt 0:00:58]} 14. Nh2 {[%emt 0:06:29]} c6 {[%emt 0:06:43]} 15. Qf3 {[%emt 0:06:01]} d5 {[%emt 0:01:07]} 16. Ng4 {[%emt 0:04:07]} Re6 {[%emt 0:19:22]} 17. Nf5 {[%emt 0:07:35]} Bb7 {[%emt 0:01:24]} 18. a4 {[%emt 0:16:55]} c5 {[%emt 0:01:21]} 19. exd5 {[%emt 0:06:45]} Nxg4 {[%emt 0:05:37]} 20. hxg4 {[%emt 0:01:15]} Rf6 {[%emt 0:01:41]} 21. c4 {[%emt 0:06:47]} Nh4 {[%emt 0:02:14]} 22. Qh3 {[%emt 0:02:06]} Nxf5 {[%emt 0:00:30]} 23. gxf5 {[%emt 0:00:04]} Bc8 {[%emt 0:02:27]} 24. g4 {[%emt 0:01:32]} Qd6 {[%emt 0:02:05]} 25. Re4 {[%emt 0:09:40]} g6 {[%emt 0:01:00]} 26. f4 {[%emt 0:00:36]} gxf5 {[%emt 0:05:42]} 27. fxe5 {[%emt 0:00:24]} Qd7 {[%emt 0:00:13]} 28. exf6 {[%emt 0:05:53]} fxe4 {[%emt 0:00:30]} 29. dxe4 {[%emt 0:00:16]} bxc4 {[%emt 0:00:31]} 30. Bxc4 {[%emt 0:00:19]} Qxg4+ {[%emt 0:00:10]} 31. Qxg4+ {[%emt 0:00:22]} Bxg4 {[%emt 0:00:05]} 32. Bxh6 {[%emt 0:04:00]} Bf3 {[%emt 0:00:07]} 33. e5 {[%emt 0:00:23] normal} 1-0

[Event "GER-ch Youth U18 2019"]
[Site "Willingen"]
[Date "2019.06.12"]
[Round "6.13"]
[White "Knoedler, Marcel"]
[Black "Schnabel, Bennett"]
[Result "1/2-1/2"]
[ECO "A10"]
[WhiteElo "1633"]
[BlackElo "2125"]
[Annotator "NA"]
[PlyCount "77"]
[EventDate "2019.06.07"]
[EventType "swiss"]
[EventRounds "9"]
[EventCountry "GER"]
[SourceTitle "playchess.com"]
[Source "ChessBase"]
[SourceQuality "1"]
[TimeControl "40/5400+30:1800+30"]

1. c4 {[%emt 0:00:00]} f5 {[%emt 0:00:00]} 2. g3 {[%emt 0:00:00]} Nf6 {[%emt 0:00:00]} 3. Bg2 {[%emt 0:00:00]} g6 {[%emt 0:00:00]} 4. Nc3 {[%emt 0:01:22]} d6 {[%emt 0:00:19]} 5. b3 {[%emt 0:01:21]} Bg7 6. Bb2 {[%emt 0:00:33]} e5 {[%emt 0:00:34]} 7. e3 {[%emt 0:03:01]} O-O {[%emt 0:01:12]} 8. Nge2 {[%emt 0:01:01]} c6 {[%emt 0:00:11]} 9. d4 {[%emt 0:03:32]} e4 {[%emt 0:00:06]} 10. a3 d5 {[%emt 0:01:15]} 11. cxd5 {[%emt 0:08:07]} cxd5 {[%emt 0:00:10]} 12. Rc1 Be6 {[%emt 0:06:07]} 13. h4 {[%emt 0:11:52]} h6 {[%emt 0:00:32]} 14. Nf4 Bf7 {[%emt 0:03:45]} 15. Na4 {[%emt 0:12:42]} Nbd7 16. O-O g5 {[%emt 0:02:54]} 17. hxg5 {[%emt 0:04:13]} hxg5 {[%emt 0:00:02]} 18. Ne2 {[%emt 0:01:02]} Ng4 19. Rc3 b5 {[%emt 0:06:15]} 20. Nc5 {[%emt 0:09:21]} Nxc5 21. Rxc5 {[%emt 0:01:30]} Qb6 {[%emt 0:02:25]} 22. Bh3 {[%emt 0:13:46]} Rfc8 {[%emt 0:17:40]} 23. Qd2 Qh6 24. Bxg4 {[%emt 0:11:52]} fxg4 {[%emt 0:00:42]} 25. Rxc8+ {[%emt 0:00:14]} Rxc8 {[%emt 0:00:08]} 26. Rc1 {[%emt 0:00:33]} Re8 {[%emt 0:01:44]} 27. Qd1 Kh7 {[%emt 0:06:20]} 28. Kf1 {[%emt 0:06:53]} Qh1+ {[%emt 0:03:07]} 29. Ng1 {[%emt 0:00:10]} Rf8 {[%emt 0:01:34]} 30. Qxg4 {[%emt 0:03:41]} Qh6 {[%emt 0:10:39]} 31. Qh3 {[%emt 0:01:40]} Be6 {[%emt 0:14:06]} 32. Qxh6+ {[%emt 0:00:17]} Kxh6 {[%emt 0:00:33]} 33. Rc6 {[%emt 0:00:50]} Rf6 {[%emt 0:01:01]} 34. Ke1 Bf7 {[%emt 0:08:47]} 35. Rxf6+ {[%emt 0:00:39]} Bxf6 {[%emt 0:03:05]} 36. Bc3 {[%emt 0:00:39]} Be7 {[%emt 0:01:33]} 37. Ba5 {[%emt 0:00:44]} Bxa3 {[%emt 0:03:15]} 38. b4 {[%emt 0:01:18]} Bh5 {[%emt 0:00:13]} 39. Ne2 {[%emt 0:01:40] normal} 1/2-1/2

[Event "GER-ch Youth U18 2019"]
[Site "Willingen"]
[Date "2019.06.12"]
[Round "6.14"]
[White "Sureshkumar, Atchuthan"]
[Black "Hinrichs, Niklas"]
[Result "0-1"]
[ECO "B90"]
[WhiteElo "1502"]
[BlackElo "2115"]
[Annotator "NA"]
[PlyCount "58"]
[EventDate "2019.06.07"]
[EventType "swiss"]
[EventRounds "9"]
[EventCountry "GER"]
[SourceTitle "playchess.com"]
[Source "ChessBase"]
[SourceQuality "1"]
[TimeControl "40/5400+30:1800+30"]

1. e4 {[%emt 0:00:00]} c5 2. Nf3 {[%emt 0:00:00]} d6 {[%emt 0:00:00]} 3. d4 {[%emt 0:00:00]} cxd4 {[%emt 0:00:00]} 4. Nxd4 Nf6 {[%emt 0:00:00]} 5. Nc3 {[%emt 0:00:03]} a6 {[%emt 0:00:07]} 6. Bc4 {[%emt 0:01:00]} e6 {[%emt 0:06:41]} 7. Bg5 {[%emt 0:02:14]} Nc6 {[%emt 0:04:55]} 8. Qd2 Qc7 9. Bxf6 {[%emt 0:08:20]} gxf6 {[%emt 0:00:37]} 10. O-O-O {[%emt 0:04:05]} Bd7 {[%emt 0:03:24]} 11. a3 {[%emt 0:04:07]} Rb8 {[%emt 0:02:03]} 12. f3 {[%emt 0:01:38]} b5 {[%emt 0:00:27]} 13. Bb3 {[%emt 0:03:39]} Na5 {[%emt 0:01:36]} 14. Ba2 {[%emt 0:02:37]} Nc4 {[%emt 0:04:15]} 15. Qe2 {[%emt 0:05:31]} Nxa3 {[%emt 0:02:17]} 16. Nd5 {[%emt 0:02:05]} Bh6+ {[%emt 0:00:34]} 17. f4 exd5 {[%emt 0:00:06]} 18. exd5+ {[%emt 0:01:05]} Kd8 {[%emt 0:00:42]} 19. bxa3 {[%emt 0:01:40]} Bxf4+ {[%emt 0:03:27]} 20. Kb1 Be5 {[%emt 0:01:03]} 21. Qf2 {[%emt 0:04:05]} b4 22. axb4 {[%emt 0:00:46]} Rxb4+ {[%emt 0:00:37]} 23. Bb3 {[%emt 0:10:05]} Qc3 {[%emt 0:01:21]} 24. Qd2 Bxd4 25. Qxc3 {[%emt 0:01:10]} Bxc3 {[%emt 0:00:34]} 26. Rd3 Be5 {[%emt 0:00:39]} 27. Kc1 {[%emt 0:01:07]} Bf5 {[%emt 0:00:07]} 28. Rf3 {[%emt 0:01:32]} Be4 29. Rh3 {[%emt 0:00:36]} Bxg2 {[%emt 0:00:41] normal} 0-1

[Event "GER-ch Youth U18 2019"]
[Site "Willingen"]
[Date "2019.06.13"]
[Round "7.1"]
[White "Engel, Luis"]
[Black "Martin, Julian"]
[Result "1/2-1/2"]
[ECO "B31"]
[WhiteElo "2512"]
[BlackElo "2370"]
[Annotator "ChessBase"]
[PlyCount "62"]
[EventDate "2019.06.07"]
[EventType "swiss"]
[EventRounds "9"]
[EventCountry "GER"]
[SourceTitle "playchess.com"]
[Source "ChessBase"]
[SourceQuality "1"]
[TimeControl "40/5400+30:1800+30"]

1. e4 {[%emt 0:00:00]} c5 {[%emt 0:00:00]} 2. Nf3 {[%emt 0:00:00]} Nc6 {[%emt 0:01:16]} 3. Bb5 {[%emt 0:00:00]} g6 {[%emt 0:00:19]} 4. Bxc6 {[%emt 0:00:00]} bxc6 {[%emt 0:00:06]} 5. O-O {[%emt 0:00:00]} Bg7 {[%emt 0:00:11]} 6. Re1 {[%emt 0:00:03]} Nh6 {[%emt 0:00:09]} 7. c3 {[%emt 0:00:06]} O-O {[%emt 0:00:34]} 8. h3 {[%emt 0:00:04]} f5 {[%emt 0:00:22]} 9. e5 {[%emt 0:00:05]} Nf7 {[%emt 0:00:05]} 10. d3 {[%emt 0:00:05]} h6 {[%emt 0:00:12]} 11. Na3 {[%emt 0:09:33]} g5 {[%emt 0:00:56]} 12. Qa4 {[%emt 0:05:37]} d6 {[%emt 0:22:48]} 13. e6 {[%emt 0:14:55]} Nh8 {[%emt 0:00:17]} 14. Qxc6 {[%emt 0:09:08]} Rb8 {[%emt 0:02:23]} 15. Nc4 {[%emt 0:02:25]} Ng6 {[%emt 0:10:22]} 16. Qa4 {[%emt 0:06:31]} Rf6 {[%emt 0:24:06]} 17. d4 {[%emt 0:08:01]} g4 {[%emt 0:02:30]} 18. hxg4 {[%emt 0:00:27]} fxg4 {[%emt 0:00:07]} 19. Nh2 {[%emt 0:00:16]} cxd4 {[%emt 0:06:21]} 20. Nxg4 {[%emt 0:10:17]} Rxe6 {[%emt 0:01:26]} 21. Bxh6 {[%emt 0:02:17]} Rxe1+ {[%emt 0:01:38]} 22. Rxe1 {[%emt 0:00:05]} Bxg4 {[%emt 0:01:01]} 23. Bxg7 {[%emt 0:00:05]} Kxg7 {[%emt 0:00:14]} 24. Qxa7 {[%emt 0:00:06]} dxc3 {[%emt 0:07:30]} 25. Qd4+ {[%emt 0:01:25]} e5 {[%emt 0:00:13]} 26. Qxg4 {[%emt 0:00:57]} cxb2 {[%emt 0:00:37]} 27. Rb1 {[%emt 0:00:51]} Qc7 {[%emt 0:01:44]} 28. Rxb2 {[%emt 0:01:20]} Rxb2 {[%emt 0:05:13]} 29. Nxb2 {[%emt 0:00:05]} d5 {[%emt 0:01:17]} 30. Qd1 {[%emt 0:16:40]} d4 {[%emt 0:03:30]} 31. g3 {[%emt 0:05:53]} Qc3 {[%emt 0:02:25] normal} 1/2-1/2

[Event "GER-ch Youth U18 2019"]
[Site "Willingen"]
[Date "2019.06.13"]
[Round "7.4"]
[White "Roseneck, Jonas"]
[Black "Browning, Alex"]
[Result "1-0"]
[ECO "B90"]
[WhiteElo "2403"]
[BlackElo "2319"]
[Annotator "NA"]
[PlyCount "93"]
[EventDate "2019.06.07"]
[EventType "swiss"]
[EventRounds "9"]
[EventCountry "GER"]
[SourceTitle "playchess.com"]
[Source "ChessBase"]
[SourceQuality "1"]
[TimeControl "40/5400+30:1800+30"]

1. e4 {[%emt 0:00:00]} c5 {[%emt 0:00:00]} 2. Nf3 {[%emt 0:00:00]} d6 {[%emt 0:00:00]} 3. d4 {[%emt 0:00:00]} cxd4 {[%emt 0:00:00]} 4. Nxd4 {[%emt 0:00:00]} Nf6 {[%emt 0:00:00]} 5. Nc3 {[%emt 0:00:00]} a6 {[%emt 0:00:06]} 6. Be3 {[%emt 0:00:00]} Ng4 {[%emt 0:00:12]} 7. Bc1 {[%emt 0:00:00]} Nf6 {[%emt 0:00:06]} 8. f3 {[%emt 0:00:00]} e5 {[%emt 0:00:12]} 9. Nb3 {[%emt 0:00:00]} Be7 {[%emt 0:00:37]} 10. Be3 {[%emt 0:00:02]} Be6 {[%emt 0:00:16]} 11. Qd2 {[%emt 0:00:08]} h5 {[%emt 0:00:06]} 12. Nd5 {[%emt 0:00:25]} Nxd5 {[%emt 0:00:25]} 13. exd5 {[%emt 0:00:05]} Bf5 {[%emt 0:00:06]} 14. Be2 {[%emt 0:04:57]} Nd7 {[%emt 0:03:47]} 15. O-O {[%emt 0:01:06]} O-O {[%emt 0:04:33]} 16. Na5 {[%emt 0:04:02]} Qc7 {[%emt 0:01:53]} 17. c4 {[%emt 0:00:03]} Bd8 {[%emt 0:06:22]} 18. b4 {[%emt 0:04:16]} Qc8 {[%emt 0:11:06]} 19. Nb3 {[%emt 0:08:25]} b6 {[%emt 0:03:13]} 20. Rac1 {[%emt 0:11:19]} Qb7 {[%emt 0:08:48]} 21. Kh1 {[%emt 0:20:01]} Re8 {[%emt 0:14:58]} 22. f4 {[%emt 0:04:20]} Bg4 {[%emt 0:06:37]} 23. Bxg4 {[%emt 0:04:53]} hxg4 {[%emt 0:00:16]} 24. fxe5 {[%emt 0:00:31]} Nxe5 {[%emt 0:02:28]} 25. c5 {[%emt 0:00:12]} b5 {[%emt 0:04:47]} 26. c6 {[%emt 0:05:08]} Qe7 {[%emt 0:00:24]} 27. Bd4 {[%emt 0:00:39]} Nc4 {[%emt 0:06:19]} 28. Qf2 {[%emt 0:00:47]} Rf8 {[%emt 0:01:33]} 29. Nd2 {[%emt 0:05:59]} Nxd2 {[%emt 0:01:44]} 30. Qxd2 {[%emt 0:00:01]} Bc7 {[%emt 0:00:51]} 31. Rce1 {[%emt 0:03:42]} Qh4 {[%emt 0:01:48]} 32. Qf4 {[%emt 0:10:06]} f5 {[%emt 0:05:08]} 33. g3 {[%emt 0:03:32]} Qd8 {[%emt 0:03:22]} 34. Re6 {[%emt 0:00:29]} Rf7 {[%emt 0:01:27]} 35. Rfe1 {[%emt 0:04:48]} Kh7 {[%emt 0:00:19]} 36. Bc3 {[%emt 0:02:20]} Rb8 {[%emt 0:03:14]} 37. Kg2 {[%emt 0:00:10]} Ra8 {[%emt 0:00:20]} 38. Rh1 {[%emt 0:00:39]} a5 {[%emt 0:01:51]} 39. a3 {[%emt 0:02:03]} axb4 {[%emt 0:00:09]} 40. Bxb4 {[%emt 0:00:02]} g5 {[%emt 0:01:12]} 41. Qe3 {[%emt 0:04:56]} Bb6 {[%emt 0:01:48]} 42. Qd3 {[%emt 0:00:10]} Qh8 {[%emt 0:00:21]} 43. h3 {[%emt 0:02:10]} Qb2+ {[%emt 0:04:19]} 44. Re2 {[%emt 0:00:11]} Qg7 {[%emt 0:00:52]} 45. hxg4+ {[%emt 0:00:25]} Kg8 {[%emt 0:00:08]} 46. Bc3 {[%emt 0:00:39]} Rxa3 {[%emt 0:00:11]} 47. Re8+ {[%emt 0:00:04] normal} 1-0

[Event "GER-ch Youth U18 2019"]
[Site "Willingen"]
[Date "2019.06.13"]
[Round "7.5"]
[White "Arndt, Magnus"]
[Black "Riess, Alexander"]
[Result "1/2-1/2"]
[ECO "C45"]
[WhiteElo "2186"]
[BlackElo "2305"]
[Annotator "NA"]
[PlyCount "85"]
[EventDate "2019.06.07"]
[EventType "swiss"]
[EventRounds "9"]
[EventCountry "GER"]
[SourceTitle "playchess.com"]
[Source "ChessBase"]
[SourceQuality "1"]
[TimeControl "40/5400+30:1800+30"]

1. e4 {[%emt 0:00:00]} e5 {[%emt 0:00:00]} 2. Nf3 {[%emt 0:00:00]} Nc6 {[%emt 0:00:00]} 3. d4 {[%emt 0:00:00]} exd4 {[%emt 0:00:00]} 4. Nxd4 {[%emt 0:00:00]} Nf6 {[%emt 0:00:22]} 5. Nxc6 {[%emt 0:00:00]} bxc6 {[%emt 0:00:07]} 6. e5 {[%emt 0:00:00]} Qe7 {[%emt 0:00:36]} 7. Qe2 {[%emt 0:00:01]} Nd5 {[%emt 0:00:14]} 8. c4 {[%emt 0:00:05]} Ba6 {[%emt 0:00:17]} 9. Nd2 {[%emt 0:00:05]} g6 {[%emt 0:01:06]} 10. Nf3 {[%emt 0:00:08]} Qb4+ {[%emt 0:01:04]} 11. Kd1 {[%emt 0:00:06]} Rb8 {[%emt 0:00:42]} 12. Qc2 {[%emt 0:00:06]} Ne7 {[%emt 0:00:36]} 13. b3 {[%emt 0:00:23]} Bg7 {[%emt 0:03:05]} 14. Bd2 {[%emt 0:00:20]} Qb6 {[%emt 0:00:56]} 15. c5 {[%emt 0:00:27]} Qb7 {[%emt 0:00:14]} 16. Bxa6 {[%emt 0:00:07]} Qxa6 {[%emt 0:00:06]} 17. Re1 {[%emt 0:00:06]} O-O {[%emt 0:02:54]} 18. Qc4 {[%emt 0:00:46]} Qa3 {[%emt 0:04:33]} 19. Nd4 {[%emt 0:04:56]} Qb2 {[%emt 0:07:29]} 20. Nc2 {[%emt 0:00:29]} Nd5 {[%emt 0:09:06]} 21. f4 {[%emt 0:00:35]} a5 {[%emt 0:21:24]} 22. g3 {[%emt 0:04:30]} Nb4 {[%emt 0:06:07]} 23. Qc3 {[%emt 0:00:56]} Qxc3 {[%emt 0:11:12]} 24. Bxc3 {[%emt 0:00:06]} Rb5 {[%emt 0:02:37]} 25. Bd4 {[%emt 0:25:28]} d6 {[%emt 0:03:01]} 26. Nxb4 {[%emt 0:43:35]} axb4 {[%emt 0:01:39]} 27. Kc2 {[%emt 0:01:14]} dxe5 {[%emt 0:01:04]} 28. fxe5 {[%emt 0:00:19]} Rd8 {[%emt 0:01:18]} 29. Rad1 {[%emt 0:00:21]} Kf8 {[%emt 0:02:26]} 30. Bg1 {[%emt 0:06:23]} Rxd1 {[%emt 0:01:27]} 31. Rxd1 {[%emt 0:01:40]} Ra5 {[%emt 0:02:51]} 32. Kb1 {[%emt 0:03:52]} Ke7 {[%emt 0:02:03]} 33. Rd4 {[%emt 0:02:03]} Rb5 {[%emt 0:01:11]} 34. Rc4 {[%emt 0:02:49]} Ke6 {[%emt 0:02:09]} 35. Be3 {[%emt 0:01:14]} Bf8 {[%emt 0:00:53]} 36. Kc2 {[%emt 0:00:59]} Kd5 {[%emt 0:01:08]} 37. Kd3 {[%emt 0:00:05]} Ra5 {[%emt 0:05:56]} 38. Rxb4 {[%emt 0:00:45]} Rxa2 {[%emt 0:00:16]} 39. Rf4 {[%emt 0:01:44]} Bxc5 {[%emt 0:03:23]} 40. Bxc5 {[%emt 0:00:05]} Kxc5 {[%emt 0:00:05]} 41. Rxf7 {[%emt 0:08:25]} Rxh2 {[%emt 0:00:56]} 42. Rd7 {[%emt 0:01:01]} Rh1 {[%emt 0:14:44]} 43. Ke4 {normal} 1/2-1/2

[Event "GER-ch Youth U18 2019"]
[Site "Willingen"]
[Date "2019.06.13"]
[Round "7.6"]
[White "Faerber, David"]
[Black "Ewert, Hannes"]
[Result "1/2-1/2"]
[ECO "A18"]
[WhiteElo "2293"]
[BlackElo "2268"]
[Annotator "NA"]
[PlyCount "61"]
[EventDate "2019.06.07"]
[EventType "swiss"]
[EventRounds "9"]
[EventCountry "GER"]
[SourceTitle "playchess.com"]
[Source "ChessBase"]
[SourceQuality "1"]
[TimeControl "40/5400+30:1800+30"]

1. c4 {[%emt 0:00:00]} Nf6 {[%emt 0:00:00]} 2. Nc3 {[%emt 0:00:00]} e6 {[%emt 0:00:00]} 3. e4 {[%emt 0:00:13]} d5 {[%emt 0:00:31]} 4. cxd5 {[%emt 0:00:20]} exd5 {[%emt 0:00:09]} 5. e5 {[%emt 0:00:06]} d4 {[%emt 0:09:00]} 6. exf6 {[%emt 0:00:40]} dxc3 {[%emt 0:00:19]} 7. Bb5+ {[%emt 0:00:24]} Nc6 {[%emt 0:03:56]} 8. Qe2+ {[%emt 0:06:37]} Be6 {[%emt 0:00:35]} 9. dxc3 {[%emt 0:01:05]} Qxf6 {[%emt 0:02:47]} 10. Nf3 {[%emt 0:00:22]} Bc5 {[%emt 0:13:39]} 11. Ng5 {[%emt 0:11:18]} O-O {[%emt 0:13:05]} 12. Nxe6 {[%emt 0:06:32]} fxe6 {[%emt 0:00:38]} 13. O-O {[%emt 0:07:05]} Ne5 {[%emt 0:05:37]} 14. Be3 {[%emt 0:02:32]} Bxe3 {[%emt 0:08:30]} 15. Qxe3 {[%emt 0:01:30]} a6 {[%emt 0:00:25]} 16. Be2 {[%emt 0:01:53]} Nf7 {[%emt 0:15:34]} 17. Bc4 {[%emt 0:06:59]} Rae8 {[%emt 0:06:54]} 18. Rae1 {[%emt 0:05:30]} Nd6 {[%emt 0:01:45]} 19. Bb3 {[%emt 0:09:07]} g6 {[%emt 0:02:43]} 20. Bxe6+ {[%emt 0:05:31]} Kg7 {[%emt 0:00:20]} 21. Qe5 {[%emt 0:08:02]} Qxe5 {[%emt 0:09:42]} 22. Rxe5 {[%emt 0:00:12]} Nc4 {[%emt 0:00:29]} 23. Re2 {[%emt 0:04:49]} Nxb2 {[%emt 0:00:45]} 24. Rxb2 {[%emt 0:00:23]} Rxe6 {[%emt 0:00:01]} 25. Rxb7 {[%emt 0:00:10]} Rf7 {[%emt 0:01:29]} 26. g3 {[%emt 0:02:36]} Re2 {[%emt 0:00:54]} 27. a4 {[%emt 0:00:22]} Rc2 {[%emt 0:01:16]} 28. Ra7 {[%emt 0:00:34]} Rxc3 {[%emt 0:00:26]} 29. Rxa6 {[%emt 0:00:02]} c5 {[%emt 0:01:41]} 30. a5 {[%emt 0:00:47]} Ra3 {[%emt 0:00:27]} 31. Rc1 {[%emt 0:07:49] normal} 1/2-1/2

[Event "GER-ch Youth U18 2019"]
[Site "Willingen"]
[Date "2019.06.13"]
[Round "7.7"]
[White "Vuckovic, Zarko"]
[Black "Engel, Robert"]
[Result "1-0"]
[ECO "B90"]
[WhiteElo "2132"]
[BlackElo "2067"]
[Annotator "NA"]
[PlyCount "69"]
[EventDate "2019.06.07"]
[EventType "swiss"]
[EventRounds "9"]
[EventCountry "GER"]
[SourceTitle "playchess.com"]
[Source "ChessBase"]
[SourceQuality "1"]
[TimeControl "40/5400+30:1800+30"]

1. e4 {[%emt 0:00:00]} c5 {[%emt 0:00:00]} 2. Nf3 {[%emt 0:00:00]} d6 {[%emt 0:00:00]} 3. d4 {[%emt 0:00:00]} cxd4 {[%emt 0:00:00]} 4. Nxd4 {[%emt 0:00:00]} Nf6 {[%emt 0:00:00]} 5. Nc3 {[%emt 0:00:00]} a6 {[%emt 0:00:00]} 6. f3 {[%emt 0:00:00]} e5 {[%emt 0:00:00]} 7. Nb3 {[%emt 0:00:00]} Be6 {[%emt 0:00:16]} 8. Be3 {[%emt 0:00:04]} Be7 {[%emt 0:00:27]} 9. Nd5 {[%emt 0:01:03]} Bxd5 {[%emt 0:01:35]} 10. exd5 {[%emt 0:00:41]} Nbd7 {[%emt 0:00:52]} 11. Qd2 {[%emt 0:00:41]} Rc8 {[%emt 0:06:13]} 12. Rc1 {[%emt 0:06:02]} O-O {[%emt 0:15:27]} 13. Na5 {[%emt 0:02:20]} Qc7 {[%emt 0:02:13]} 14. c4 {[%emt 0:05:07]} e4 {[%emt 0:04:09]} 15. Be2 {[%emt 0:02:34]} exf3 {[%emt 0:03:16]} 16. gxf3 {[%emt 0:00:58]} Ne5 {[%emt 0:02:31]} 17. b4 {[%emt 0:01:59]} Qd7 {[%emt 0:03:52]} 18. O-O {[%emt 0:08:16]} Rfe8 {[%emt 0:06:26]} 19. Bd4 {[%emt 0:03:39]} Bd8 {[%emt 0:02:59]} 20. Nb3 {[%emt 0:00:56]} Qf5 {[%emt 0:03:16]} 21. Rf2 {[%emt 0:07:27]} Nh5 {[%emt 0:05:58]} 22. f4 {[%emt 0:12:24]} Ng6 {[%emt 0:01:21]} 23. Rg2 {[%emt 0:03:06]} Nf6 {[%emt 0:05:49]} 24. Bd3 {[%emt 0:16:35]} Qh3 {[%emt 0:04:57]} 25. Rf1 {[%emt 0:06:20]} Rc7 {[%emt 0:05:14]} 26. Rg3 {[%emt 0:04:57]} Qh4 {[%emt 0:03:10]} 27. Rg2 {[%emt 0:08:03]} Ne4 {[%emt 0:06:00]} 28. Qe1 {[%emt 0:00:37]} Qxe1 {[%emt 0:03:13]} 29. Rxe1 {[%emt 0:00:02]} f5 {[%emt 0:00:25]} 30. Rf1 {[%emt 0:01:26]} Kf7 {[%emt 0:02:55]} 31. Rc2 {[%emt 0:02:30]} Bf6 {[%emt 0:00:38]} 32. Bb6 {[%emt 0:00:29]} Rd7 {[%emt 0:00:36]} 33. Nd4 {[%emt 0:00:42]} Rc8 {[%emt 0:01:27]} 34. Nxf5 {[%emt 0:01:56] normal} Nc3 {[%emt 0:01:19]} 35. Ng3 {[%emt 0:00:29] normal} 1-0

[Event "GER-ch Youth U18 2019"]
[Site "Willingen"]
[Date "2019.06.13"]
[Round "7.8"]
[White "Kuznecovs, Nikita"]
[Black "Runte, Moritz"]
[Result "1-0"]
[ECO "A05"]
[WhiteElo "2317"]
[BlackElo "2096"]
[Annotator "NA"]
[PlyCount "59"]
[EventDate "2019.06.07"]
[EventType "swiss"]
[EventRounds "9"]
[EventCountry "GER"]
[SourceTitle "playchess.com"]
[Source "ChessBase"]
[SourceQuality "1"]
[TimeControl "40/5400+30:1800+30"]

1. Nf3 {[%emt 0:00:00]} Nf6 {[%emt 0:00:00]} 2. c4 {[%emt 0:00:00]} e6 {[%emt 0:00:00]} 3. Nc3 {[%emt 0:00:00]} d5 {[%emt 0:00:41]} 4. e3 {[%emt 0:00:01]} Be7 {[%emt 0:03:14]} 5. Qc2 {[%emt 0:00:10]} Nbd7 {[%emt 0:04:22]} 6. b3 {[%emt 0:00:11]} b6 {[%emt 0:03:00]} 7. Bb2 {[%emt 0:00:47]} Bb7 {[%emt 0:04:31]} 8. Be2 {[%emt 0:00:13]} c5 {[%emt 0:01:36]} 9. cxd5 {[%emt 0:00:08]} exd5 {[%emt 0:00:21]} 10. d4 {[%emt 0:00:09]} O-O {[%emt 0:02:17]} 11. O-O {[%emt 0:01:14]} Rc8 {[%emt 0:02:14]} 12. Rac1 {[%emt 0:00:30]} Ne4 {[%emt 0:06:47]} 13. dxc5 {[%emt 0:00:15]} Ndxc5 {[%emt 0:02:02]} 14. Qb1 {[%emt 0:00:28]} Bf6 {[%emt 0:07:32]} 15. Nb5 {[%emt 0:00:29]} a6 {[%emt 0:10:55]} 16. Bxf6 {[%emt 0:00:10]} Qxf6 {[%emt 0:00:39]} 17. Nbd4 {[%emt 0:00:10]} Ne6 {[%emt 0:05:40]} 18. Qb2 {[%emt 0:22:39]} Rfe8 {[%emt 0:09:10]} 19. Bd3 {[%emt 0:01:02]} g5 {[%emt 0:04:01]} 20. Rfd1 {[%emt 0:14:57]} g4 {[%emt 0:07:46]} 21. Bxe4 {[%emt 0:00:37]} dxe4 {[%emt 0:00:14]} 22. Ne1 {[%emt 0:03:06]} Rc5 {[%emt 0:03:21]} 23. Qa3 {[%emt 0:06:02]} Ra5 {[%emt 0:08:25]} 24. Qd6 {[%emt 0:01:27]} Rxa2 {[%emt 0:03:35]} 25. Nec2 {[%emt 0:01:15]} b5 {[%emt 0:02:47]} 26. Qg3 {[%emt 0:04:54]} Nxd4 {[%emt 0:01:36]} 27. exd4 {[%emt 0:02:45]} Rc8 {[%emt 0:01:19]} 28. Ne3 {[%emt 0:01:17]} Rd8 {[%emt 0:01:44]} 29. Rc7 {[%emt 0:09:28]} Bc8 {[%emt 0:00:54]} 30. Rxc8 {[%emt 0:00:21] normal} 1-0

[Event "GER-ch Youth U18 2019"]
[Site "Willingen"]
[Date "2019.06.13"]
[Round "7.9"]
[White "Goldbeck, Lars"]
[Black "Muetsch, Annmarie"]
[Result "0-1"]
[ECO "A05"]
[WhiteElo "2199"]
[BlackElo "2266"]
[Annotator "NA"]
[PlyCount "27"]
[EventDate "2019.06.07"]
[EventType "swiss"]
[EventRounds "9"]
[EventCountry "GER"]
[SourceTitle "playchess.com"]
[Source "ChessBase"]
[SourceQuality "1"]
[TimeControl "40/5400+30:1800+30"]

1. Nf3 {[%emt 0:00:00]} Nf6 {[%emt 0:00:00]} 2. g3 {[%emt 0:00:00]} g6 {[%emt 0:00:00]} 3. Bg2 {[%emt 0:00:00]} Bg7 {[%emt 0:00:00]} 4. O-O {[%emt 0:00:00]} O-O {[%emt 0:00:00]} 5. d4 {[%emt 0:00:00]} c6 {[%emt 0:00:23]} 6. c4 {[%emt 0:00:00]} d5 {[%emt 0:00:05]} 7. b3 {[%emt 0:00:11]} dxc4 {[%emt 0:00:14]} 8. bxc4 {[%emt 0:00:02]} c5 {[%emt 0:00:09]} 9. Bb2 {[%emt 0:00:03]} cxd4 {[%emt 0:00:04]} 10. Nxd4 {[%emt 0:00:03]} Qb6 {[%emt 0:00:09]} 11. Qb3 {[%emt 0:00:47]} Nfd7 {[%emt 0:00:19]} 12. Rd1 {[%emt 0:11:15]} Na6 {[%emt 0:04:47]} 13. Qa3 {[%emt 0:12:02]} Nb4 {[%emt 0:19:21]} 14. Nc3 {[%emt 0:17:12] normal} 0-1